bitfinex/quotes_ETHUSD_20251021
["timestamp","ask_amount","ask_price","bid_price","bid_amount"]
[1761011529394,1.9681,3960.9,3960.4,0.002]
[1761011529592,1.8536,3960.9,3960.4,0.4492]
[1761011532540,1.8536,3960.9,3960.5,0.02524933]
[1761011533316,1.8536,3960.9,3960.4,0.4492]
[1761011534524,1.8536,3960.9,3960.4,2.97418083]
[1761011534828,1.8536,3960.9,3960.5,0.4472]
[1761011535243,1.8536,3960.9,3960.4,2.52698083]
[1761011536250,1.8536,3960.9,3960.0,0.002]
[1761011536251,0.1976,3958.5,3956.2,4.54670558]
[1761011536406,0.1976,3958.5,3956.1,0.2347]
[1761011536407,5.51387922,3956.6,3956.1,0.2347]
[1761011536711,5.51387922,3956.6,3955.6,3.212]
[1761011536712,1.62833416,3956.5,3955.6,4.27314173]
[1761011536901,5.51387922,3956.6,3955.7,0.4466]
[1761011537104,0.54165454,3956.5,3955.7,0.4466]
[1761011539712,0.53838869,3956.1,3955.6,3.267]
[1761011539942,1.827,3956.2,3955.6,3.267]
[1761011540145,0.53838869,3956.1,3955.6,3.267]
[1761011540439,0.63738869,3956.1,3955.4,3.267]
[1761011541212,0.1504,3955.5,3955.0,10.0]
[1761011541513,0.0995,3955.4,3955.0,10.0]
[1761011541708,0.6861943,3955.5,3955.0,10.0]
[1761011542117,0.04405289,3956.3,3955.4,2.76288931]
[1761011542460,0.04405289,3956.3,3955.6,2.52805221]
[1761011542461,0.53537187,3956.2,3955.6,2.52805221]
[1761011543111,0.04405289,3956.3,3955.7,0.4466]
[1761011543316,0.53537187,3956.7,3956.2,2.52767807]
[1761011543512,0.53537187,3956.7,3956.3,2.52761418]
[1761011543765,7.08611121,3956.6,3955.0,10.0]
[1761011544060,2.26337187,3956.5,3955.6,2.52799778]
[1761011544356,0.53537187,3956.4,3955.7,3.276]
[1761011544562,0.53537187,3956.3,3955.7,3.276]
[1761011544761,0.53537187,3956.2,3955.7,3.276]
[1761011544921,0.53537187,3956.1,3955.7,5.80393504]
[1761011545111,0.53537187,3956.0,3955.8,2.52792773]
[1761011545311,1.7720523,3956.5,3955.8,2.52792773]
[1761011545312,0.53537187,3956.4,3955.8,2.52792773]
[1761011545554,0.53537187,3956.3,3955.8,2.52792773]
[1761011545733,0.53537187,3956.2,3955.8,2.52792773]
[1761011545934,0.53537187,3956.1,3955.9,2.52786816]
[1761011546150,0.53537187,3956.0,3955.9,2.52786816]
[1761011546351,0.53537187,3956.0,3955.9,2.48826816]
[1761011546645,1.728,3956.5,3955.9,2.48826816]
[1761011546646,0.1256,3956.2,3956.0,2.52774868]
[1761011546852,0.53537187,3956.1,3956.0,2.52774868]
[1761011547341,0.53537187,3956.1,3955.7,3.276]
[1761011547548,0.53537187,3956.0,3955.7,2.52799273]
[1761011547720,0.53537187,3955.9,3955.8,3.275]
[1761011547921,0.53537187,3955.9,3955.8,5.80293366]
[1761011548148,0.68577187,3955.9,3955.5,2.52811136]
[1761011548329,0.53537187,3955.8,3955.6,3.274]
[1761011548529,0.53537187,3955.7,3955.2,2.5282539]
[1761011548734,0.53537187,3955.6,3955.3,3.274]
[1761011548948,0.53537187,3955.5,3955.4,2.52813979]
[1761011549362,0.53537187,3955.5,3955.3,3.274]
[1761011549363,0.53537187,3955.5,3955.3,5.80225023]
[1761011549657,0.53537187,3955.4,3955.3,5.80225023]
[1761011551152,0.53537187,3955.6,3955.3,2.52825322]
[1761011551330,0.53537187,3955.8,3955.6,2.52803567]
[1761011551526,0.0995,3956.2,3955.6,2.52803567]
[1761011551527,0.53537187,3955.7,3955.6,2.52803567]
[1761011551932,0.53537187,3955.7,3955.6,5.80003567]
[1761011552149,0.57942479,3956.4,3955.9,2.52786285]
[1761011552463,0.53537187,3956.3,3956.0,2.52779931]
[1761011552657,0.53537187,3956.2,3956.0,2.52779931]
[1761011552858,0.53537187,3956.3,3955.6,3.7307]
[1761011553059,0.53537187,3956.2,3956.1,2.52774196]
[1761011553260,0.57942479,3956.4,3956.1,2.52774196]
[1761011553639,0.57942479,3956.4,3956.0,3.271]
[1761011553842,0.57942479,3956.4,3956.1,2.52774196]
[1761011554573,0.04405292,3956.4,3956.1,2.52774196]
[1761011554729,0.04405292,3956.4,3956.2,2.52767807]
[1761011555957,0.04405292,3956.4,3956.3,2.52761418]
[1761011556151,0.53537187,3956.5,3956.2,2.52767073]
[1761011556457,0.1706,3956.8,3956.2,2.52767073]
[1761011556458,0.53537187,3956.4,3956.3,3.269]
[1761011557654,0.53537187,3956.4,3956.3,5.79661418]
[1761011558152,0.53537187,3956.4,3956.3,6.25531418]
[1761011559073,0.53537187,3956.4,3956.3,5.79661418]
[1761011559843,0.53537187,3956.4,3956.3,3.269]
[1761011560349,0.53537187,3956.4,3956.3,4.12443668]
[1761011560550,0.53537187,3956.4,3956.3,5.79661418]
[1761011561274,0.53537187,3956.4,3956.3,3.269]
[1761011561436,0.53537187,3956.4,3956.3,5.79661418]
[1761011563198,0.53537187,3956.4,3956.3,6.25531418]
[1761011564296,0.53537187,3956.4,3956.3,5.79661418]
[1761011566219,0.53537187,3956.4,3956.3,5.64078902]
[1761011566377,0.1256,3956.6,3956.4,2.52748721]
[1761011566582,0.1256,3956.6,3956.5,2.52748641]
[1761011566979,0.1256,3956.6,3956.5,2.98618641]
[1761011567300,0.04404826,3957.2,3956.5,0.4587]
[1761011567605,0.1256,3957.0,3956.6,3.26]
[1761011567802,0.1256,3957.0,3956.7,2.52735779]
[1761011569109,0.1256,3957.0,3956.8,0.4587]
[1761011569539,0.1256,3957.0,3956.7,2.52734524]
[1761011569679,0.272,3958.1,3956.9,3.7187]
[1761011569884,0.1256,3957.3,3957.2,2.52698248]
[1761011570122,2.52683922,3957.6,3956.7,3.258]
[1761011570414,13.9787258,3957.7,3957.0,2.52712118]
[1761011570605,1.728,3957.9,3957.1,2.52708838]
[1761011570776,1.728,3957.9,3955.9,2.5278157]
[1761011570777,0.1014,3958.0,3957.0,3.259]
[1761011570984,1.728,3957.9,3957.1,2.52710318]
[1761011571220,0.1014,3958.0,3957.2,2.52703441]
[1761011571714,0.1014,3958.0,3957.1,2.75698075]
[1761011571916,1.728,3957.9,3957.1,2.75698075]
[1761011572492,1.728,3957.9,3957.1,3.21568075]
[1761011572821,0.04404165,3957.8,3957.1,3.21568075]
[1761011573188,0.04404165,3957.8,3957.2,2.52702543]
[1761011573423,0.04404165,3957.8,3957.1,3.21568326]
[1761011573798,0.04404165,3957.8,3957.1,0.6886]
[1761011574308,0.04404165,3957.8,3957.1,3.2156858]
[1761011574783,0.04504165,3957.8,3957.1,3.2156858]
[1761011575716,0.04504165,3957.8,3957.2,0.4587]
[1761011576043,0.001,3957.8,3957.6,2.52674491]
[1761011576334,0.001,3957.8,3957.7,2.52672006]
[1761011576509,0.001,3957.8,3957.7,2.98542006]
[1761011576902,0.001,3957.8,3957.7,3.256]
[1761011577433,0.001,3957.8,3957.5,2.52684642]
[1761011577597,0.001,3957.8,3957.6,3.256]
[1761011578118,0.001,3957.8,3957.1,0.2299]
[1761011578320,0.173,3957.7,3957.1,5.78308629]
[1761011580026,0.1256,3957.6,3957.1,5.78308629]
[1761011580327,0.1256,3957.6,3957.1,3.256]
[1761011580694,4.60683409,3957.4,3957.0,2.52714224]
[1761011580891,4.60683409,3957.4,3957.1,3.254]
[1761011581092,4.60683409,3957.4,3957.1,5.78105655]
[1761011581439,4.60683409,3957.4,3957.2,2.52703555]
[1761011581727,4.60683409,3957.4,3957.2,2.99823555]
[1761011581923,4.60683409,3957.4,3957.2,2.52703555]
[1761011582488,4.60683409,3957.4,3957.1,6.01248303]
[1761011582694,4.60683409,3957.4,3957.2,2.52701684]
[1761011583213,1.8536,3957.6,3957.2,2.52701684]
[1761011583418,1.8536,3957.6,3957.3,2.52695783]
[1761011584697,1.8536,3957.6,3957.2,2.99823242]
[1761011585131,1.8536,3957.6,3957.3,2.52697368]
[1761011586298,0.1256,3957.6,3957.4,3.7232]
[1761011586504,0.1256,3957.6,3957.5,2.52684775]
[1761011586701,0.1256,3957.6,3957.5,2.99804775]
[1761011587232,0.001,3957.8,3957.7,2.52672006]
[1761011587436,0.001,3957.8,3957.7,6.24892006]
[1761011589638,0.001,3957.8,3957.7,7.13905684]
[1761011593752,0.001,3957.8,3957.7,12.25277093]
[1761011594049,0.001,3957.8,3957.7,7.13605684]
[1761011598156,0.001,3957.8,3957.7,3.41685684]
[1761011598357,0.001,3957.8,3957.7,5.77272006]
[1761011599749,0.001,3957.8,3957.7,5.89832006]
[1761011601470,4.70773409,3957.8,3956.4,0.4413]
[1761011601794,4.60683409,3957.7,3957.2,2.52703264]
[1761011601967,4.70673409,3957.7,3957.2,5.74403264]
[1761011602167,0.0999,3957.6,3957.2,5.74403264]
[1761011602355,0.0999,3957.6,3957.2,3.217]
[1761011603612,4.60683409,3957.4,3956.3,0.50888]
[1761011603798,4.60683409,3957.4,3956.5,2.52747682]
[1761011604004,4.70673409,3957.4,3956.5,3.1488545]
[1761011604815,4.70673409,3957.4,3956.8,2.5272359]
[1761011605010,4.70673409,3957.4,3956.9,2.52723091]
[1761011605229,4.60683409,3957.1,3956.3,0.002]
[1761011605427,0.1685,3956.9,3956.4,3.243]
[1761011605631,4.60683409,3957.1,3956.6,2.5273726]
[1761011606000,4.60683409,3957.1,3956.7,2.52735711]
[1761011606495,1.728,3957.3,3957.1,2.52704884]
[1761011606830,4.973,3957.6,3957.1,2.52709443]
[1761011607379,5.0742,3957.6,3957.1,2.52709443]
[1761011607609,5.0742,3957.6,3957.2,2.52702521]
[1761011607817,4.973,3957.6,3957.2,2.52702521]
[1761011608382,1.728,3957.6,3957.2,2.52702521]
[1761011609184,1.728,3957.6,3957.3,2.55223021]
[1761011611549,1.8536,3957.6,3957.3,2.55223021]
[1761011611720,0.1256,3957.6,3957.3,0.02526975]
[1761011611916,0.1256,3957.6,3957.3,2.5269637]
[1761011612117,0.1256,3957.6,3957.4,0.02526911]
[1761011612331,0.1256,3957.6,3957.3,2.5269147]
[1761011612852,0.1256,3957.6,3957.2,2.52702223]
[1761011613026,0.1256,3957.6,3957.3,3.242]
[1761011613751,1.8536,3957.6,3957.3,3.242]
[1761011613915,0.1012,3957.5,3957.3,3.242]
[1761011614117,1.728,3957.3,3957.1,3.241]
[1761011614553,0.1012,3957.2,3957.1,3.241]
[1761011615451,0.1012,3957.2,3956.8,3.241]
[1761011615651,4.60683409,3957.1,3956.8,3.241]
[1761011616153,0.1665,3956.9,3956.6,0.1256]
[1761011616355,0.1665,3956.9,3956.6,3.24]
[1761011616556,0.269,3956.9,3956.6,3.24]
[1761011619682,2.5269116,3957.4,3956.6,3.24]
[1761011619886,0.1256,3957.0,3956.6,3.24]
[1761011620077,0.1256,3957.0,3956.6,3.74122376]
[1761011620386,0.1256,3957.0,3956.7,3.238]
[1761011623886,2.65279055,3957.0,3956.6,0.50122376]
[1761011624067,4.60683409,3956.9,3956.6,3.236]
[1761011624854,0.0440435,3957.1,3956.6,3.236]
[1761011625051,0.1256,3957.0,3956.7,3.33509141]
[1761011625266,0.1256,3957.0,3956.7,0.80777358]
[1761011625450,0.1256,3957.0,3956.7,3.33512886]
[1761011627475,0.1256,3957.0,3956.7,0.80777358]
[1761011627990,0.1256,3957.0,3956.8,0.4589]
[1761011628191,0.1256,3957.0,3956.9,3.235]
[1761011632694,0.1256,3957.0,3956.9,5.76223091]
[1761011632878,0.1256,3957.0,3956.9,3.235]
[1761011640743,0.1256,3957.0,3956.4,0.1256]
[1761011641025,0.1256,3956.6,3956.5,3.228]
[1761011643535,30.32792329,3956.4,3956.3,0.002]
[1761011643738,15.21602529,3956.4,3956.3,0.002]
[1761011644444,18.44402529,3956.4,3956.3,0.002]
[1761011644634,27.27096329,3956.4,3956.3,0.002]
[1761011644832,24.85522929,3956.4,3956.3,0.002]
[1761011645402,21.26527829,3956.4,3956.3,0.002]
[1761011645603,37.48355029,3956.4,3956.3,0.002]
[1761011646003,10.27890829,3956.4,3956.3,0.002]
[1761011646618,17.93430473,3956.4,3956.3,0.002]
[1761011647614,17.42014373,3956.4,3956.3,0.002]
[1761011647822,16.36483273,3956.4,3956.3,0.002]
[1761011648238,16.32077729,3956.4,3956.3,0.002]
[1761011648641,7.48355029,3956.4,3956.3,0.002]
[1761011648848,37.48355029,3956.4,3956.3,0.002]
[1761011649216,21.01663629,3956.4,3956.3,0.002]
[1761011649455,11.32869429,3956.4,3956.3,0.002]
[1761011649743,13.02990629,3956.4,3956.3,0.002]
[1761011649945,12.73905329,3956.4,3956.3,0.002]
[1761011650761,27.03150029,3956.4,3956.3,0.002]
[1761011650913,15.32780804,3956.4,3956.3,0.002]
[1761011651119,14.80072804,3956.4,3956.3,0.002]
[1761011651722,25.90587404,3956.4,3956.3,0.002]
[1761011652436,26.41275404,3956.4,3956.3,0.002]
[1761011652825,38.44869847,3956.4,3956.3,0.002]
[1761011653020,38.13587851,3956.4,3956.3,0.002]
[1761011654257,38.13587851,3956.4,3955.5,0.002]
[1761011654258,0.50688,3955.9,3955.5,0.002]
[1761011654458,21.37657205,3955.6,3955.5,0.002]
[1761011654976,16.03829603,3955.6,3955.5,0.002]
[1761011655158,17.33829603,3955.6,3955.5,0.002]
[1761011655464,0.05,3952.9,3952.1,0.2294]
[1761011655622,3.283,3952.8,3952.2,1.28637761]
[1761011655857,0.047,3952.7,3952.3,0.4592]
[1761011656105,1.728,3952.7,3952.3,0.61077776]
[1761011656310,2.48898964,3952.7,3952.3,0.15157776]
[1761011656469,0.04409367,3953.0,3952.4,2.98924616]
[1761011656667,1.728,3953.1,3952.5,0.02530044]
[1761011656897,0.05120003,3955.7,3952.5,0.02530044]
[1761011656898,0.76081594,3953.3,3953.0,0.2252]
[1761011657065,1.728,3953.7,3953.0,0.2252]
[1761011657264,1.728,3953.7,3953.0,0.9598993]
[1761011657470,2.088669,3953.7,3953.0,0.2252]
[1761011657687,3.285,3953.8,3953.1,0.4592]
[1761011657882,3.68178333,3954.2,3953.2,0.02529596]
[1761011658074,3.68178333,3954.2,3953.1,0.4592]
[1761011658075,3.285,3954.2,3953.4,2.52945795]
[1761011658394,4.04563269,3954.5,3953.5,0.02529404]
[1761011658695,4.04563269,3954.5,3953.1,0.4592]
[1761011658696,3.285,3954.5,3953.2,0.48449596]
[1761011658894,0.76061533,3954.7,3953.9,2.52912283]
[1761011659297,4.605495,3954.6,3954.0,0.4592]
[1761011659594,0.80469419,3954.7,3954.1,0.2252]
[1761011659791,0.04407886,3954.7,3954.1,0.2252]
[1761011659958,0.04407886,3954.7,3954.2,0.4592]
[1761011660898,0.04407886,3954.7,3954.2,0.78054064]
[1761011661066,0.04407886,3954.7,3954.2,0.4592]
[1761011662462,10.678417,3954.6,3953.7,0.2252]
[1761011662705,1.728,3954.5,3953.7,2.75446092]
[1761011662871,0.04407886,3954.7,3953.7,0.2252]
[1761011663074,0.36800838,3954.7,3953.7,0.2252]
[1761011663280,1.728,3954.5,3953.7,0.2252]
[1761011663593,0.36800838,3954.7,3953.7,2.75446159]
[1761011663594,5.76462189,3954.7,3953.7,2.75446159]
[1761011663787,1.728,3954.6,3953.8,2.52918477]
[1761011664094,1.728,3954.6,3953.8,2.98838477]
[1761011664675,1.728,3954.6,3953.8,0.4592]
[1761011665398,8.647686,3954.5,3953.4,0.4592]
[1761011665589,1.728,3954.4,3953.4,2.98866279]
[1761011665767,2.0174,3954.3,3953.5,2.52939123]
[1761011665963,1.728,3954.2,3953.5,2.52940269]
[1761011666476,1.728,3954.2,3953.5,2.52939564]
[1761011666893,1.728,3954.2,3953.4,1.08626628]
[1761011667198,1.728,3954.1,3953.1,0.4612]
[1761011667395,1.728,3953.9,3953.1,0.4612]
[1761011667596,13.838558,3954.2,3953.1,0.4612]
[1761011667800,5.44069128,3954.3,3953.1,0.4612]
[1761011667801,6.520515,3953.7,3953.1,0.4612]
[1761011668005,1.728,3953.7,3953.1,0.4612]
[1761011668210,3.249392,3953.6,3953.1,0.002]
[1761011668417,6.413358,3953.8,3953.1,0.002]
[1761011668904,5.379924,3953.8,3953.1,0.002]
[1761011669286,5.39661351,3953.5,3953.1,0.002]
[1761011669605,3.279,3953.7,3953.1,0.2272]
[1761011669606,4.03986033,3953.7,3953.1,0.2272]
[1761011670194,3.279,3954.0,3953.2,0.4592]
[1761011670494,1.728,3953.9,3953.3,2.52948486]
[1761011670699,1.728,3953.9,3953.2,0.4592]
[1761011670700,1.728,3953.9,3953.5,2.52939458]
[1761011670909,1.728,3953.9,3953.2,0.4592]
[1761011671067,1.728,3953.9,3953.6,2.52930055]
[1761011671266,1.728,3953.9,3953.4,2.52941981]
[1761011671695,1.728,3953.9,3953.5,0.4472]
[1761011672101,1.728,3953.9,3953.5,2.97660391]
[1761011672300,1.728,3953.9,3953.3,2.52948203]
[1761011672488,1.728,3953.9,3953.6,0.4472]
[1761011673500,1.728,3953.9,3953.3,2.80519814]
[1761011673805,0.1264,3953.4,3953.3,3.25239814]
[1761011674791,0.76165776,3954.6,3953.3,3.25239814]
[1761011674792,4.03765776,3954.6,3954.0,2.52907254]
[1761011675005,3.277,3954.6,3954.1,2.52897755]
[1761011675304,3.277,3954.6,3954.0,2.52906943]
[1761011675469,0.1264,3954.1,3954.0,2.52906943]
[1761011676074,0.1264,3954.1,3954.0,2.97626943]
[1761011676270,0.001,3954.6,3954.4,2.52878489]
[1761011676476,0.001,3954.6,3954.2,2.52894775]
[1761011676801,0.001,3954.6,3954.5,2.52876469]
[1761011677308,0.001,3954.6,3954.5,2.97596469]
[1761011678006,0.001,3954.6,3954.5,6.25096469]
[1761011685189,0.001,3954.6,3954.5,6.24796469]
[1761011685830,0.001,3954.6,3954.5,5.80076469]
[1761011686195,0.001,3954.6,3954.5,6.24796469]
[1761011686416,0.001,3954.6,3954.5,6.98076536]
[1761011688424,0.001,3954.6,3954.5,2.52876469]
[1761011688608,0.001,3954.6,3954.3,5.80089089]
[1761011689394,0.001,3954.6,3954.4,2.52882135]
[1761011689594,0.001,3954.6,3954.4,2.52882864]
[1761011689794,0.001,3954.6,3954.5,2.52876469]
[1761011690026,0.001,3954.6,3954.4,2.52880775]
[1761011690226,0.001,3954.6,3954.4,5.79980775]
[1761011690724,0.001,3954.6,3954.5,2.52876469]
[1761011691429,0.001,3954.6,3954.4,5.79881049]
[1761011691811,0.001,3954.6,3954.5,2.52876469]
[1761011693620,0.001,3954.6,3954.5,3.87873683]
[1761011693852,0.001,3954.6,3954.5,3.85344919]
[1761011697150,0.001,3954.6,3954.5,3.87873683]
[1761011697682,0.001,3954.6,3954.5,3.85344919]
[1761011698784,0.001,3954.6,3954.5,3.97984919]
[1761011699163,0.001,3954.6,3954.5,3.97734919]
[1761011699374,0.001,3954.6,3954.5,7.24134919]
[1761011701367,0.001,3954.6,3954.5,11.74762504]
[1761011702173,0.001,3954.6,3954.5,7.24134919]
[1761011702387,0.001,3954.6,3954.0,0.4627]
[1761011702700,0.001,3954.6,3954.5,2.52876469]
[1761011702850,0.001,3954.6,3954.5,5.79176469]
[1761011703186,0.001,3954.6,3954.5,3.263]
[1761011704254,0.001,3954.6,3954.5,5.79176469]
[1761011705784,0.001,3954.6,3954.5,3.263]
[1761011705955,0.001,3954.6,3954.0,0.1264]
[1761011706156,0.001,3954.6,3954.2,2.52889841]
[1761011706486,0.001,3954.6,3954.2,2.52895655]
[1761011706787,0.001,3954.6,3954.3,3.261]
[1761011707081,0.001,3954.6,3954.5,2.52876469]
[1761011707287,0.001,3954.6,3954.5,2.55405233]
[1761011707455,0.001,3954.6,3954.5,3.01675233]
[1761011707656,0.001,3954.6,3954.5,2.99146469]
[1761011711153,0.001,3954.6,3954.5,5.78676469]
[1761011712404,0.001,3954.6,3954.5,6.24946469]
[1761011712899,0.001,3954.6,3954.5,11.67325684]
[1761011713078,0.001,3954.6,3954.5,12.18013684]
[1761011714502,0.001,3954.6,3954.5,13.90813684]
[1761011714694,0.001,3954.6,3954.5,13.90424987]
[1761011714877,0.001,3954.6,3954.5,14.15734987]
[1761011715295,0.001,3954.6,3954.5,23.6303944]
[1761011715826,0.04405401,3957.1,3956.6,2.52742142]
[1761011716002,0.04405401,3957.1,3956.4,2.52749091]
[1761011716183,0.04405401,3957.1,3956.5,2.52748499]
[1761011716502,0.04405401,3957.1,3956.0,0.4719]
[1761011716503,1.728,3956.9,3955.9,2.52781843]
[1761011716702,1.728,3956.9,3956.0,3.257]
[1761011716904,30.0,3956.8,3955.9,3.256]
[1761011717500,1.728,3956.6,3955.0,3.00028959]
[1761011717700,2.52711234,3957.1,3955.7,2.52794858]
[1761011717902,1.728,3956.8,3955.9,2.52786337]
[1761011718099,1.728,3956.8,3956.1,2.52769851]
[1761011718309,5.663064,3957.0,3956.0,0.02527805]
[1761011718501,5.663064,3957.0,3956.3,2.52756819]
[1761011718502,2.325876,3957.0,3956.3,2.52756819]
[1761011718705,2.325876,3957.0,3956.3,2.52756443]
[1761011718878,2.035812,3957.0,3956.4,2.52753756]
[1761011719072,2.035812,3957.0,3956.1,3.256]
[1761011719278,0.001,3957.1,3956.1,3.4891]
[1761011719480,0.001,3957.1,3956.5,2.52743723]
[1761011719901,0.04405395,3956.9,3956.5,2.52743723]
[1761011720109,0.04405395,3956.9,3956.6,2.52741346]
[1761011720600,0.04405395,3956.9,3956.7,2.52734286]
[1761011720807,0.04405395,3956.9,3956.8,2.52729478]
[1761011721005,0.16965395,3956.9,3956.8,2.52729478]
[1761011721312,0.16965395,3956.9,3956.5,3.255]
[1761011721478,0.16965395,3956.9,3956.6,2.52736628]
[1761011721679,0.16965395,3956.9,3956.7,2.5273417]
[1761011722280,0.16965395,3956.9,3956.6,2.52740323]
[1761011722480,0.16965395,3956.9,3956.7,2.52735058]
[1761011722899,0.16965395,3956.9,3956.7,2.5273314]
[1761011723823,0.1256,3956.9,3956.7,2.5273314]
[1761011724183,0.1256,3956.9,3956.6,3.253]
[1761011724396,0.1256,3956.9,3956.7,2.52730575]
[1761011724618,0.1256,3956.9,3956.8,2.52729478]
[1761011725309,0.1256,3956.9,3956.7,2.5272983]
[1761011725616,0.1256,3956.9,3956.6,3.253]
[1761011725813,0.1256,3956.9,3956.8,2.52729478]
[1761011726000,0.1256,3956.9,3956.6,3.253]
[1761011726402,0.1256,3956.9,3956.6,5.78041294]
[1761011726602,0.1256,3956.9,3956.6,5.78041892]
[1761011726805,0.1256,3956.9,3956.2,0.1256]
[1761011727017,0.1256,3956.9,3956.4,3.252]
[1761011727532,0.1256,3956.5,3956.2,3.25]
[1761011727914,0.1256,3956.5,3956.2,5.77767103]
[1761011728815,0.1256,3956.5,3956.3,2.52761201]
[1761011729229,0.1256,3956.5,3956.2,3.25]
[1761011729933,0.1256,3956.5,3956.2,5.77763398]
[1761011730754,0.04405103,3957.0,3955.1,0.4589]
[1761011730904,0.1256,3956.1,3955.4,0.1264]
[1761011731232,0.1256,3956.1,3955.5,1.164]
[1761011731428,0.1256,3956.1,3955.4,0.1264]
[1761011731627,0.1264,3955.7,3955.4,2.543]
[1761011732447,2.468863,3956.7,3955.6,0.2364]
[1761011732621,17.22787698,3957.2,3955.7,2.52795149]
[1761011732622,1.728,3957.0,3955.7,2.52795149]
[1761011732821,1.728,3956.8,3955.7,2.52793921]
[1761011733043,1.728,3956.4,3955.7,2.52799757]
[1761011733359,2.52736954,3956.7,3955.6,2.76444031]
[1761011733556,2.352802,3956.4,3955.7,2.52798375]
[1761011733851,3.241484,3956.5,3955.8,3.248]
[1761011734141,3.023146,3956.5,3955.8,3.248]
[1761011734844,3.023146,3956.5,3955.8,5.77593095]
[1761011735042,3.023146,3956.5,3955.9,2.5278552]
[1761011735212,0.04405645,3956.6,3955.9,2.5278552]
[1761011736952,0.04405645,3956.6,3956.0,2.98669412]
[1761011737136,0.04405645,3956.6,3956.2,2.5276357]
[1761011737322,30.0,3956.5,3955.8,3.248]
[1761011737647,30.0,3956.5,3955.4,0.002]
[1761011737648,4.967564,3955.7,3955.4,0.002]
[1761011737850,6.23613137,3955.5,3955.4,0.002]
[1761011739113,4.332019,3956.3,3955.4,2.98902674]
[1761011739448,6.23613137,3956.3,3955.4,0.4609]
[1761011739622,6.23613137,3956.3,3955.4,0.002]
[1761011739828,6.23613137,3956.3,3955.4,0.4609]
[1761011740019,6.23613137,3956.3,3955.5,2.52807982]
[1761011740353,6.23613137,3956.3,3955.6,2.52803883]
[1761011740554,1.728,3956.3,3955.5,2.5281132]
[1761011740780,1.728,3956.3,3955.7,2.52798412]
[1761011741045,4.50549908,3956.6,3955.5,2.52812539]
[1761011741046,4.50549908,3956.5,3955.5,0.5517295]
[1761011741251,4.50549908,3956.2,3955.7,3.251]
[1761011742351,4.50549908,3956.2,3955.5,3.252]
[1761011742516,0.1256,3955.9,3955.5,3.252]
[1761011742927,0.1256,3955.9,3955.5,5.78012262]
[1761011743255,6.456285,3955.5,3955.4,0.002]
[1761011743547,5.139012,3955.5,3955.4,0.002]
[1761011744250,4.94268,3955.5,3955.4,0.002]
[1761011744465,1.728,3955.5,3955.4,0.002]
[1761011744966,6.989794,3955.5,3955.4,0.002]
[1761011745161,5.902727,3955.5,3955.4,0.002]
[1761011745368,5.838203,3955.5,3955.4,0.002]
[1761011746282,8.106584,3955.5,3955.4,0.002]
[1761011746447,6.995948,3955.5,3955.4,0.002]
[1761011746775,9.05424005,3955.5,3955.4,0.002]
[1761011746975,10.15829223,3955.5,3955.4,0.002]
[1761011747156,20.92166675,3954.6,3954.5,0.002]
[1761011747346,22.06543475,3954.6,3954.5,0.002]
[1761011747559,20.78883075,3954.6,3954.5,0.002]
[1761011747873,18.26013,3954.6,3954.5,0.002]
[1761011748185,18.26013,3954.6,3949.4,0.003]
[1761011748186,0.6961,3953.1,3949.4,0.003]
[1761011748400,0.6961,3953.1,3946.3,5.75675272]
[1761011748401,3.11508544,3947.9,3946.3,5.75675272]
[1761011748671,0.05,3950.8,3945.1,7.27472893]
[1761011748672,3.08182522,3947.8,3946.1,0.2364]
[1761011748869,0.50688,3946.2,3943.0,0.40767719]
[1761011749069,0.50688,3945.6,3944.8,0.4589]
[1761011749377,1.34241282,3946.4,3942.8,16.4946355]
[1761011749378,30.0,3944.8,3943.0,0.41637221]
[1761011749701,0.67143399,3944.4,3943.1,0.0311289]
[1761011749875,10.039235,3944.2,3943.2,0.02536011]
[1761011750179,3.19670999,3943.3,3943.2,0.02536011]
[1761011750335,0.53287747,3943.3,3943.1,0.00576815]
[1761011750539,0.55817998,3943.2,3943.1,0.00576815]
[1761011750765,2.59346636,3943.2,3943.1,0.46466815]
[1761011750966,4.48100128,3943.9,3942.8,0.125]
[1761011751169,4.48100128,3943.9,3942.9,0.2364]
[1761011751370,3.41600128,3943.9,3943.8,0.2364]
[1761011751572,3.41600128,3943.9,3943.8,5.48868695]
[1761011751874,3.06928849,3944.5,3943.8,5.48868695]
[1761011752070,3.06928849,3944.4,3944.1,14.07426231]
[1761011752371,2.78154268,3945.1,3944.5,0.50688]
[1761011752538,2.78154268,3945.1,3945.0,2.23488]
[1761011752742,0.04413,3946.1,3945.0,22.49111532]
[1761011752970,0.04413,3946.1,3945.1,17.14124233]
[1761011753170,0.04413,3946.1,3945.9,0.1264]
[1761011753521,0.04413,3946.1,3946.0,4.204]
[1761011753794,0.04413,3946.1,3946.0,5.932]
[1761011753958,0.04413,3946.1,3946.0,6.43888]
[1761011754158,0.4537,3949.6,3947.1,2.53344765]
[1761011754381,6.21030167,3951.0,3947.4,1.728]
[1761011754586,6.21030167,3951.0,3947.2,5.96]
[1761011754587,0.04414171,3950.1,3947.5,0.02533248]
[1761011754794,0.04414171,3950.1,3948.5,2.53258294]
[1761011754973,0.39721882,3951.2,3948.7,1.728]
[1761011755167,0.4537,3951.1,3948.9,1.728]
[1761011755381,3.835,3951.0,3945.1,0.05]
[1761011755581,8.632158,3950.9,3946.3,2.53399431]
[1761011755757,1.728,3950.2,3946.4,1.84433954]
[1761011755958,1.728,3949.8,3946.7,0.50688]
[1761011756194,15.882615,3950.6,3947.9,0.50688]
[1761011756381,2.53147245,3950.3,3948.1,0.50688]
[1761011756616,16.70891,3950.4,3948.1,4.80488]
[1761011756762,2.726244,3950.2,3949.0,0.50688]
[1761011757098,8.369559,3950.6,3949.1,4.296]
[1761011757261,8.128084,3950.2,3947.9,2.53298933]